bitfinex/quotes_BTCUSD_20250119
["timestamp","ask_amount","ask_price","bid_price","bid_amount"]
[1737284537625,0.22748403,104980.0,104950.0,0.35494907]
[1737284538238,0.07705683,104970.0,104950.0,0.25570826]
[1737284538518,0.07705683,104970.0,104950.0,0.25868791]
[1737284539756,0.32672484,104980.0,104970.0,0.023]
[1737284540082,0.07748403,104980.0,104970.0,0.023]
[1737284540280,0.22748403,104980.0,104970.0,0.023]
[1737284540483,0.07748403,104980.0,104970.0,0.023]
[1737284540845,0.22748403,104980.0,104970.0,0.023]
[1737284541278,0.22748403,104980.0,104970.0,0.02597965]
[1737284541455,0.07748403,104980.0,104970.0,0.02597965]
[1737284541858,0.0004272,104980.0,104970.0,0.02597965]
[1737284542038,0.0004272,104980.0,104970.0,0.05703295]
[1737284542536,0.0004272,104980.0,104970.0,0.0540533]
[1737284542852,0.0004272,104980.0,104970.0,0.06001227]
[1737284544144,0.0004272,104980.0,104970.0,0.30925308]
[1737284544568,0.0004272,104980.0,104970.0,0.21001227]
[1737284544768,0.0004272,104980.0,104970.0,0.17895897]
[1737284546029,0.0004272,104980.0,104970.0,0.27819978]
[1737284546230,0.0004272,104980.0,104970.0,0.30925308]
[1737284547482,0.0004272,104980.0,104970.0,0.30618408]
[1737284549496,0.0004272,104980.0,104970.0,0.17588997]
[1737284550390,0.0004272,104980.0,104970.0,0.169931]
[1737284550609,0.0004272,104980.0,104970.0,0.26917181]
[1737284550820,0.0004272,104980.0,104970.0,0.30022511]
[1737284551027,0.0004272,104980.0,104970.0,0.39996828]
[1737284551468,0.0004272,104980.0,104970.0,0.37702511]
[1737284551673,0.0004272,104980.0,104970.0,0.39996828]
[1737284551923,0.0004272,104980.0,104970.0,0.34597181]
[1737284552129,0.0004272,104980.0,104970.0,0.35193078]
[1737284553089,0.0004272,104980.0,104970.0,0.38298408]
[1737284553899,0.0004272,104980.0,104970.0,0.40592725]
[1737284554771,0.0004272,104980.0,104970.0,0.38298408]
[1737284555153,0.0004272,104980.0,104970.0,0.35193078]
[1737284558885,0.0004272,104980.0,104970.0,0.17588997]
[1737284559331,0.0004272,104980.0,104970.0,0.15595897]
[1737284560319,0.0004272,104980.0,104970.0,0.173]
[1737284560765,0.07748403,104980.0,104950.0,0.08290826]
[1737284560918,0.07748403,104980.0,104950.0,0.18214907]
[1737284561356,0.07867475,104980.0,104950.0,0.18214907]
[1737284561530,0.07867475,104980.0,104960.0,0.023]
[1737284561727,0.07748403,104980.0,104960.0,0.173]
[1737284562819,0.07748403,104980.0,104960.0,0.17597965]
[1737284563895,0.07748403,104980.0,104960.0,0.18193862]
[1737284566600,0.07867476,104980.0,104960.0,0.18193862]
[1737284567558,0.07867476,104980.0,104960.0,0.18283574]
[1737284567559,0.07705683,104970.0,104960.0,0.18283574]
[1737284568631,0.07705683,104970.0,104960.0,0.03283574]
[1737284569791,0.11205354,104980.0,104960.0,0.03283574]
[1737284569792,0.26205354,104980.0,104960.0,0.03283574]
[1737284569999,0.15119088,104970.0,104960.0,0.03283574]
[1737284571086,0.25043169,104970.0,104960.0,0.03283574]
[1737284571300,0.24924081,104970.0,104960.0,0.03283574]
[1737284572553,0.07705683,104970.0,104960.0,0.03283574]
[1737284572763,0.07748403,104980.0,104960.0,0.21410199]
[1737284572971,0.22748403,104980.0,104960.0,0.18283574]
[1737284573376,0.07748403,104980.0,104960.0,0.18283574]
[1737284573581,0.22748403,104980.0,104960.0,0.18283574]
[1737284574184,0.07748403,104980.0,104960.0,0.18283574]
[1737284574614,0.0004272,104980.0,104960.0,0.06410199]
[1737284574835,0.07748403,104980.0,104960.0,0.06410199]
[1737284575668,0.19133503,104980.0,104960.0,0.06410199]
[1737284576012,0.19133503,104980.0,104960.0,0.14440199]
[1737284576218,0.05226923,104990.0,104960.0,0.2436428]
[1737284576598,0.20226923,104990.0,104960.0,0.2436428]
[1737284576855,0.19133503,104980.0,104960.0,0.03283574]
[1737284577435,0.19133503,104980.0,104960.0,0.02985609]
[1737284578893,0.19133503,104980.0,104960.0,0.06112234]
[1737284579093,0.19176303,104980.0,104960.0,0.06112234]
[1737284580241,0.150428,104980.0,104960.0,0.06112234]
[1737284580444,0.150428,104980.0,104970.0,0.05426625]
[1737284580445,0.000428,104980.0,104970.0,0.05426625]
[1737284580599,0.000428,104980.0,104970.0,0.38380706]
[1737284581558,0.000428,104980.0,104970.0,0.38976603]
[1737284584827,0.000428,104980.0,104970.0,0.25925897]
[1737284585035,0.01171649,105000.0,104970.0,0.15595897]
[1737284585245,0.11214788,105000.0,104970.0,0.15595897]
[1737284585649,0.11214788,105000.0,104980.0,0.023]
[1737284586349,0.1109573,105000.0,104980.0,0.023]
[1737284586761,0.1109573,105000.0,104980.0,0.02895897]
[1737284587523,0.01171649,105000.0,104980.0,0.17895897]
[1737284587730,0.00048031,105000.0,104980.0,0.39236603]
[1737284587928,0.29910069,105010.0,104980.0,0.39236603]
[1737284589431,0.0004271,105010.0,104980.0,0.39236603]
[1737284590353,0.0004271,105010.0,104980.0,0.36109978]
[1737284590771,0.17896791,105010.0,104980.0,0.17895897]
[1737284590976,0.00119049,105000.0,104980.0,0.02895897]
[1737284591203,0.17896791,105010.0,104980.0,0.02895897]
[1737284591408,0.000428,105000.0,104980.0,0.02895897]
[1737284592056,0.09966881,105000.0,104980.0,0.02895897]
[1737284592811,0.000428,105000.0,104980.0,0.02895897]
[1737284593386,0.000428,105000.0,104980.0,0.18540978]
[1737284593586,0.000428,105000.0,104990.0,0.27224081]
[1737284594257,0.000428,105000.0,104990.0,0.35514081]
[1737284594868,0.000428,105000.0,104990.0,0.3552901]
[1737284595078,0.000428,105000.0,104990.0,0.36124907]
[1737284601436,0.000428,105000.0,104990.0,0.72886116]
[1737284601696,0.44980386,105040.0,105000.0,0.26112824]
[1737284601961,0.44980386,105040.0,105020.0,0.173]
[1737284602214,0.3958913,105040.0,105020.0,0.173]
[1737284602972,0.49513211,105040.0,105020.0,0.00595897]
[1737284603503,0.1103024,105040.0,105020.0,0.00595897]
[1737284603740,0.11149253,105040.0,105020.0,0.00595897]
[1737284605232,0.00119013,105030.0,105020.0,0.00595897]
[1737284605475,0.10043094,105030.0,105020.0,0.00595897]
[1737284606587,0.10043094,105030.0,105010.0,0.02895897]
[1737284609226,0.09924081,105020.0,105010.0,0.00595897]
[1737284609633,0.22804081,105020.0,105010.0,0.00595897]
[1737284611313,0.22804081,105020.0,104990.0,0.00104788]
[1737284611543,0.00119052,105010.0,104990.0,0.00104788]
[1737284611747,0.10043133,105010.0,104990.0,0.00104788]
[1737284612179,0.10043133,105010.0,104990.0,0.00700582]
[1737284613966,0.09924081,105000.0,104990.0,0.00700582]
[1737284614382,0.09924081,105000.0,104990.0,0.03000582]
[1737284616269,0.09924081,105000.0,104990.0,0.00104788]
[1737284617974,0.18134081,105000.0,104990.0,0.00104788]
[1737284618173,0.18253154,105000.0,104990.0,0.00104788]
[1737284619831,0.26801754,105000.0,104990.0,0.00104788]
[1737284620034,0.26682681,105000.0,104990.0,0.00104788]
[1737284620254,0.27792165,105000.0,104990.0,0.00104788]
[1737284621312,0.37792165,105000.0,104990.0,0.00104788]
[1737284622093,0.50621181,105000.0,104990.0,0.00104788]
[1737284622945,0.55491181,105000.0,104990.0,0.00104788]
[1737284624144,0.72596536,105000.0,104990.0,0.00104788]
[1737284624923,0.93913621,105000.0,104990.0,0.00104788]
[1737284626420,0.95775034,105000.0,104990.0,0.00104788]
[1737284627617,1.10775034,105000.0,104990.0,0.00104788]
[1737284629215,0.92226434,105000.0,104990.0,0.00104788]
[1737284630757,1.00759226,105000.0,104990.0,0.00104788]
[1737284632555,0.79442141,105000.0,104990.0,0.00104788]
[1737284633343,0.62336786,105000.0,104990.0,0.00104788]
[1737284635489,1.00759226,105000.0,104990.0,0.00104788]
[1737284637135,1.01399226,105000.0,104990.0,0.00104788]
[1737284638347,1.16399226,105000.0,104990.0,0.00104788]
[1737284638551,0.3,104990.0,104970.0,0.0008988]
[1737284638869,0.25043195,104980.0,104970.0,0.0008988]
[1737284639092,0.1,104970.0,104960.0,0.01096021]
[1737284639314,0.20564081,104970.0,104960.0,0.01096021]
[1737284640209,0.35564081,104970.0,104960.0,0.00798036]
[1737284640422,0.42293768,104970.0,104960.0,0.00089712]
[1737284640625,0.35564081,104970.0,104960.0,0.00089712]
[1737284640852,0.40524081,104970.0,104960.0,0.00089712]
[1737284641268,0.49056873,104970.0,104960.0,0.00089712]
[1737284642724,0.501957,104970.0,104960.0,0.00089712]
[1737284646610,0.52059268,104970.0,104960.0,0.00089712]
[1737284647626,0.36459268,104970.0,104960.0,0.00089712]
[1737284647845,0.195957,104970.0,104960.0,0.00089712]
[1737284648188,0.19714795,104970.0,104960.0,0.00089712]
[1737284648640,0.11062908,104970.0,104960.0,0.00089712]
[1737284649020,0.11062908,104970.0,104960.0,0.00387807]
[1737284650407,0.11062908,104970.0,104960.0,0.00089712]
[1737284651626,0.11105708,104970.0,104960.0,0.00089712]
[1737284652198,0.11224809,104970.0,104960.0,0.00089712]
[1737284652567,0.11224809,104970.0,104960.0,0.00798086]
[1737284652970,0.11224808,104970.0,104960.0,0.00798086]
[1737284653665,0.11224808,104970.0,104960.0,0.01096132]
[1737284655476,0.11105708,104970.0,104960.0,0.01096132]
[1737284659233,0.196385,104970.0,104960.0,0.01096132]
[1737284659634,0.196385,104970.0,104960.0,0.0169219]
[1737284659855,0.19757594,104970.0,104960.0,0.0169219]
[1737284660056,0.196385,104970.0,104960.0,0.0169219]
[1737284660264,0.11224801,104970.0,104960.0,0.0169219]
[1737284660930,0.11105708,104970.0,104960.0,0.0169219]
[1737284662916,0.112248,104970.0,104960.0,0.0169219]
[1737284663140,0.01300719,104970.0,104960.0,0.0169219]
[1737284663347,0.01181627,104970.0,104960.0,0.0169219]
[1737284664919,0.01181627,104970.0,104960.0,0.02645827]
[1737284666852,0.01181627,104970.0,104960.0,0.19945827]
[1737284667055,0.000428,104970.0,104960.0,0.32425827]
[1737284667910,0.000428,104970.0,104960.0,0.30125827]
[1737284668401,0.000428,104970.0,104960.0,0.15125827]
[1737284668926,0.000428,104970.0,104960.0,0.1417219]
[1737284670542,0.000428,104970.0,104960.0,0.0946219]
[1737284670543,0.0016188,104970.0,104960.0,0.0946219]
[1737284671801,0.000428,104970.0,104960.0,0.0946219]
[1737284672150,0.00161892,104970.0,104960.0,0.0946219]
[1737284673978,0.00161892,104970.0,104960.0,0.10415849]
[1737284675367,0.0127193,104970.0,104960.0,0.10415849]
[1737284675792,0.01152838,104970.0,104960.0,0.10415849]
[1737284678518,0.0127193,104970.0,104960.0,0.10415849]
[1737284678938,0.0127193,104970.0,104960.0,0.0946219]
[1737284680835,0.0127193,104970.0,104960.0,0.0169219]
[1737284682308,0.11196011,104970.0,104960.0,0.0169219]
[1737284683363,0.19728803,104970.0,104960.0,0.0169219]
[1737284684705,0.19609711,104970.0,104960.0,0.0169219]
[1737284685504,0.49544082,104970.0,104960.0,0.0169219]
[1737284686602,0.32438727,104970.0,104960.0,0.0169219]
[1737284688393,0.22514646,104970.0,104960.0,0.0169219]
[1737284689203,0.32438727,104970.0,104960.0,0.0169219]
[1737284690116,0.49544082,104970.0,104960.0,0.0169219]
[1737284691077,0.49499359,104970.0,104960.0,0.0169219]
[1737284692125,0.32394004,104970.0,104960.0,0.0169219]
[1737284693310,0.58052037,104970.0,104960.0,0.0169219]
[1737284694384,0.36734952,104970.0,104960.0,0.0169219]
[1737284695404,0.68362831,104970.0,104960.0,0.0169219]
[1737284696138,0.36734952,104970.0,104960.0,0.0169219]
[1737284698863,0.58153691,104970.0,104960.0,0.0169219]
[1737284699739,0.47931831,104970.0,104960.0,0.0169219]
[1737284700146,0.45503842,104970.0,104960.0,0.0169219]
[1737284700894,0.39910457,104970.0,104960.0,0.0169219]
[1737284701191,0.40972525,104970.0,104960.0,0.0169219]
[1737284703230,0.62391264,104970.0,104960.0,0.0169219]
[1737284707388,0.40972525,104970.0,104960.0,0.0169219]
[1737284709141,0.49539004,104970.0,104960.0,0.0169219]
[1737284709727,0.49581804,104970.0,104960.0,0.0169219]
[1737284710283,0.49581804,104970.0,104960.0,0.02169065]
[1737284710942,0.4958276,104970.0,104960.0,0.02169065]
[1737284713688,0.7215276,104970.0,104960.0,0.02169065]
[1737284713892,0.7683276,104970.0,104960.0,0.02169065]
[1737284714274,0.1,104960.0,104940.0,0.01043665]
[1737284714505,0.07691381,104950.0,104940.0,0.01043665]
[1737284714714,0.03126598,104950.0,104940.0,0.01043665]
[1737284714921,0.03236841,104950.0,104940.0,0.01043665]
[1737284715123,0.01760381,104950.0,104940.0,0.01043665]
[1737284715546,0.0176534,104950.0,104940.0,0.00685956]
[1737284715751,0.40319151,104950.0,104940.0,0.00685956]
[1737284715957,0.40208908,104950.0,104940.0,0.00685956]
[1737284716552,0.47778908,104950.0,104940.0,0.00685956]
[1737284716700,0.71503384,104950.0,104940.0,0.00685956]
[1737284716908,0.99353561,104950.0,104940.0,0.00685956]
[1737284717311,0.19044476,104940.0,104920.0,0.01043623]
[1737284717512,0.10034324,104930.0,104920.0,0.01043623]
[1737284717822,0.10034324,104930.0,104920.0,0.00089712]
[1737284717823,0.147188,104930.0,104920.0,0.00089712]
[1737284718838,0.4469126,104930.0,104920.0,0.00089712]
[1737284719070,0.44513601,104930.0,104920.0,0.00089712]
[1737284720914,0.5769459,104930.0,104920.0,0.00089712]
[1737284721083,0.7269459,104930.0,104920.0,0.00089712]
[1737284721297,0.68650114,104930.0,104920.0,0.00089712]
[1737284721497,0.76713528,104930.0,104920.0,0.00089712]
[1737284722109,0.78083206,104930.0,104920.0,0.00089712]
[1737284722489,0.2796,104910.0,104900.0,0.00089691]
[1737284722621,0.04044476,104900.0,104880.0,0.00184221]
[1737284722871,0.00750243,104890.0,104880.0,0.00184221]
[1737284723072,0.00750243,104890.0,104880.0,0.00089838]
[1737284723688,0.00755197,104890.0,104880.0,0.00089838]
[1737284724309,0.29723754,104890.0,104880.0,0.00089838]
[1737284724460,0.29613511,104890.0,104880.0,0.00089838]
[1737284725272,0.38164716,104890.0,104880.0,0.00089838]
[1737284726098,0.04044476,104880.0,104860.0,0.0056694]
[1737284726299,0.10034324,104870.0,104860.0,0.0056694]
[1737284726750,0.08542207,104890.0,104860.0,0.0056694]
[1737284726957,0.08542207,104890.0,104870.0,0.0819]
[1737284727374,4.954e-05,104890.0,104870.0,0.0819]
[1737284727580,4.954e-05,104890.0,104870.0,0.1301]
[1737284727818,4.954e-05,104890.0,104870.0,0.18965524]
[1737284728022,0.0111387,104890.0,104870.0,0.18965524]
[1737284728224,0.00115197,104890.0,104870.0,0.13487291]
[1737284729262,4.954e-05,104890.0,104870.0,0.13487291]
[1737284729854,4.954e-05,104890.0,104870.0,0.1378555]
[1737284730787,4.954e-05,104890.0,104870.0,0.19741074]
[1737284732041,0.00266283,104880.0,104870.0,0.34741074]
[1737284732755,0.00266283,104880.0,104870.0,0.35337593]
[1737284733158,0.00266283,104880.0,104870.0,0.45261674]
[1737284733683,0.00266283,104880.0,104870.0,0.45351575]
[1737284734521,0.00336529,104880.0,104870.0,0.30351575]
[1737284736984,0.00336529,104880.0,104870.0,0.45351575]
[1737284738252,4.954e-05,104890.0,104880.0,0.05955524]
[1737284738406,4.954e-05,104890.0,104880.0,0.15879605]
[1737284739728,4.954e-05,104890.0,104880.0,0.16655155]
[1737284740533,4.954e-05,104890.0,104880.0,0.39645155]
[1737284740740,4.954e-05,104890.0,104880.0,0.40241674]
[1737284740935,4.954e-05,104890.0,104880.0,0.45001674]
[1737284742770,4.954e-05,104890.0,104880.0,0.55641674]
[1737284743062,0.00110243,104930.0,104910.0,0.13705524]
[1737284743268,0.01145886,104940.0,104910.0,0.23629605]
[1737284743481,0.00505886,104940.0,104920.0,0.15879605]
[1737284743686,0.00014903,104940.0,104920.0,0.15974913]
[1737284743896,0.00014903,104940.0,104920.0,0.15879605]
[1737284744302,0.00014903,104940.0,104920.0,0.15974907]
[1737284744519,0.00014903,104940.0,104930.0,0.28705524]
[1737284744746,0.00014903,104940.0,104930.0,0.38629605]
[1737284745171,0.00014903,104940.0,104930.0,0.40179918]
[1737284745815,0.00545309,104940.0,104930.0,0.40179918]
[1737284746026,0.00797746,104940.0,104930.0,0.40179918]
[1737284746452,0.00797746,104940.0,104930.0,0.40955468]
[1737284746901,0.01069491,104940.0,104930.0,0.40955468]
[1737284751558,0.01069491,104940.0,104930.0,0.34999944]
[1737284752174,0.01069491,104940.0,104930.0,0.40955468]
[1737284752364,0.01069491,104940.0,104930.0,0.40001674]
[1737284755073,0.01069491,104940.0,104930.0,0.39524383]
[1737284756045,0.01069491,104940.0,104930.0,0.08644778]
[1737284756245,0.01069491,104940.0,104930.0,0.00894778]
[1737284757120,0.01069491,104940.0,104930.0,0.01372069]
[1737284758378,0.01069491,104940.0,104930.0,0.00298259]
[1737284758778,0.01222564,104940.0,104930.0,0.00298259]
[1737284760012,0.01222564,104940.0,104930.0,0.0077555]
[1737284762014,0.01222564,104940.0,104930.0,0.01372069]
[1737284763609,0.01222564,104940.0,104930.0,0.0077555]
[1737284765952,0.01112321,104940.0,104930.0,0.0077555]
[1737284766728,0.01112321,104940.0,104930.0,0.01372069]
[1737284767313,0.24136645,104940.0,104900.0,0.05955524]
[1737284767513,0.00110243,104930.0,104900.0,0.15879605]
[1737284767876,0.00820421,104920.0,104900.0,0.16928919]
[1737284768211,0.22971814,104940.0,104900.0,0.16928919]
[1737284768427,0.00820224,104910.0,104900.0,0.31928919]
[1737284768626,0.22971814,104940.0,104900.0,0.31833601]
[1737284768890,0.00110243,104930.0,104910.0,0.15879605]
[1737284769062,0.00930467,104930.0,104910.0,0.15879605]
[1737284769468,0.00820224,104930.0,104910.0,0.15974915]
[1737284769671,0.00820224,104930.0,104910.0,0.23409605]
[1737284770666,0.00820224,104930.0,104920.0,0.05955524]
[1737284770928,0.00820224,104930.0,104920.0,0.15879605]
[1737284773862,0.00820224,104930.0,104920.0,0.16833531]
[1737284774648,0.02151792,104930.0,104920.0,0.44028834]
[1737284774928,0.00820224,104930.0,104920.0,0.43933531]
[1737284775132,0.00820224,104930.0,104920.0,0.5643795]
[1737284776204,0.00820224,104930.0,104920.0,0.4690053]
[1737284776412,0.00820224,104930.0,104920.0,0.39363531]
[1737284776819,0.00820224,104930.0,104920.0,0.24363531]
[1737284778078,0.00820224,104930.0,104920.0,0.2733573]
[1737284778292,0.00820224,104930.0,104920.0,0.27812664]
[1737284778470,0.01380208,104940.0,104930.0,0.05955524]
[1737284778673,0.01380208,104940.0,104930.0,0.15879605]
[1737284778878,0.01380208,104940.0,104920.0,0.14916384]
[1737284779091,0.01380208,104940.0,104930.0,0.00953926]
[1737284779483,0.01380208,104940.0,104930.0,0.16833531]
[1737284780350,0.01380208,104940.0,104930.0,0.17429634]
[1737284780556,0.01380208,104940.0,104930.0,0.3282298]
[1737284780760,0.01380208,104940.0,104930.0,0.32727685]
[1737284782172,0.01380208,104940.0,104930.0,0.37317685]
[1737284782602,0.01380208,104940.0,104930.0,0.40290077]
[1737284783650,0.00057733,104940.0,104930.0,0.48490077]
[1737284784024,0.00057733,104940.0,104930.0,1.09160077]
[1737284784813,0.00057733,104940.0,104930.0,1.11160077]
[1737284785559,0.0004281,104950.0,104940.0,0.58745524]
[1737284785766,0.0004281,104950.0,104940.0,0.81175897]
[1737284786113,0.000428,104970.0,104960.0,0.53775524]
[1737284786313,0.000428,104970.0,104960.0,0.76845927]
[1737284786817,0.00865059,104970.0,104960.0,0.76845927]
[1737284787453,0.00865059,104970.0,104960.0,0.78395956]
[1737284788208,0.00865059,104970.0,104960.0,0.75423564]
[1737284788379,0.00865059,104970.0,104960.0,0.85423564]
[1737284788764,0.00865059,104970.0,104960.0,0.88382129]
[1737284788962,0.00865059,104970.0,104960.0,0.78382129]
[1737284789521,0.00865059,104970.0,104960.0,0.75423564]
[1737284790013,0.00865059,104970.0,104960.0,0.78380024]
[1737284790159,0.00865059,104970.0,104960.0,0.75423564]
[1737284790370,0.00865059,104970.0,104960.0,0.40393564]
[1737284791142,0.00865059,104970.0,104960.0,0.75423564]
[1737284792532,0.00865059,104970.0,104960.0,0.65889634]
[1737284792738,0.00865059,104970.0,104960.0,0.30859634]
[1737284793450,0.00865059,104970.0,104960.0,0.30219634]
[1737284794664,0.00865059,104970.0,104960.0,0.24675708]
[1737284795471,0.000428,104970.0,104960.0,0.24675708]
[1737284795823,0.00870309,104970.0,104960.0,0.24675708]
[1737284798136,0.00846359,104970.0,104960.0,0.24675708]
[1737284798976,0.0001885,104970.0,104960.0,0.24675708]
[1737284799941,0.0001885,104970.0,104960.0,0.26006659]
[1737284800406,0.0001885,104970.0,104960.0,0.24675708]
[1737284800615,0.0001885,104970.0,104960.0,0.21631297]
[1737284800816,0.0001885,104970.0,104960.0,0.26341297]
[1737284801024,0.00718929,104970.0,104960.0,0.26341297]
[1737284801253,0.00718929,104970.0,104960.0,0.42821297]
[1737284801654,0.00718929,104970.0,104960.0,0.32821297]
[1737284801837,0.00718929,104970.0,104960.0,0.42821297]
[1737284802054,0.0001885,104970.0,104960.0,0.42821297]
[1737284802265,0.0001885,104970.0,104960.0,0.37823816]
[1737284803169,0.0001885,104970.0,104960.0,0.27823816]
[1737284805447,0.0001885,104970.0,104960.0,0.75923816]
[1737284805876,0.0001885,104970.0,104960.0,0.94648616]
[1737284806075,3.141e-05,104970.0,104960.0,1.00369616]
[1737284806282,3.141e-05,104970.0,104960.0,1.05032788]
[1737284806961,3.141e-05,104970.0,104960.0,1.32834388]
[1737284807306,3.141e-05,104970.0,104960.0,0.86307988]
[1737284807475,3.141e-05,104970.0,104960.0,0.92575475]
[1737284808101,3.141e-05,104970.0,104960.0,1.27692875]
[1737284808325,3.141e-05,104970.0,104960.0,0.92575475]
[1737284808736,3.141e-05,104970.0,104960.0,1.74692648]
[1737284809133,3.141e-05,104970.0,104960.0,0.94467048]
[1737284810182,3.141e-05,104970.0,104960.0,0.92757616]
[1737284812631,3.141e-05,104970.0,104960.0,0.94618704]
[1737284812835,3.141e-05,104970.0,104960.0,0.92757616]
[1737284812947,0.01408488,105000.0,104990.0,0.02977222]
[1737284813157,0.1437269,105000.0,104980.0,0.02977222]
[1737284813373,0.14946851,105000.0,104980.0,0.12901303]
[1737284813568,0.083,104990.0,104980.0,0.12901303]
[1737284813773,0.0887144,104990.0,104980.0,0.12901303]
[1737284816575,0.0887144,104990.0,104980.0,0.27901303]
[1737284816781,0.0057144,104990.0,104980.0,0.27901303]
[1737284816980,0.0057144,104990.0,104980.0,0.37434563]
[1737284817195,0.0057144,104990.0,104980.0,0.46118723]
[1737284817663,0.0057144,104990.0,104980.0,0.36119953]
[1737284817862,0.0057144,104990.0,104980.0,0.18835534]
[1737284818041,0.0057144,104990.0,104980.0,0.18930761]
[1737284818200,0.0057144,104990.0,104980.0,0.21897057]
[1737284818401,0.0142269,105000.0,104980.0,0.2180183]
[1737284818615,0.0142269,105000.0,104990.0,0.10010163]
[1737284819083,0.00057042,105000.0,104990.0,0.15731163]
[1737284819289,0.00057042,105000.0,104990.0,0.21251163]
[1737284819456,0.00057042,105000.0,104990.0,0.49217051]
[1737284819680,0.00033347,105000.0,104990.0,0.49121825]
[1737284819986,0.00033347,105000.0,104990.0,0.64121825]
[1737284820125,0.00033347,105000.0,104990.0,0.53481825]
[1737284820321,0.00033347,105000.0,104990.0,0.54121825]
[1737284820681,0.00033347,105000.0,104990.0,0.59241825]
[1737284820883,0.00033347,105000.0,104990.0,0.53520825]
[1737284821087,0.00033347,105000.0,104990.0,0.62643435]
[1737284821692,9.506e-05,105000.0,104990.0,0.62643435]
[1737284822098,9.506e-05,105000.0,104990.0,0.37643435]
[1737284822366,9.506e-05,105000.0,104990.0,0.92488024]
[1737284822857,0.0004279,105010.0,105000.0,0.3]
[1737284822858,0.00028592,105010.0,105000.0,0.3]
[1737284823095,0.00028592,105010.0,105000.0,0.52420009]
[1737284823328,0.00028592,105010.0,105000.0,0.70020009]
[1737284824104,0.00028592,105010.0,105000.0,0.91337572]
[1737284824546,0.00028592,105010.0,105000.0,0.91933157]
[1737284825169,0.00028592,105010.0,105000.0,1.05390183]
[1737284825374,0.00028592,105010.0,105000.0,1.20754183]
[1737284826004,0.00028592,105010.0,105000.0,1.31662273]
[1737284826616,0.0104277,105040.0,105030.0,0.3]
[1737284826823,0.0104277,105040.0,105030.0,0.50087891]
[1737284826824,0.01057665,105040.0,105030.0,0.50087891]
[1737284827029,0.01057665,105040.0,105030.0,0.35087891]
[1737284828202,0.01057665,105040.0,105030.0,0.35683476]
[1737284828398,0.01057665,105040.0,105030.0,0.45672007]
[1737284828639,0.01057665,105040.0,105030.0,0.49664218]
[1737284829797,0.01057665,105040.0,105030.0,0.35683476]
[1737284831296,0.01057665,105040.0,105030.0,0.45672007]
[1737284831912,0.01057665,105040.0,105030.0,0.68202007]
[1737284832112,0.01057665,105040.0,105030.0,0.70554187]
[1737284832486,0.01057665,105040.0,105030.0,0.68202007]
[1737284833239,0.01057665,105040.0,105030.0,0.57566007]
[1737284833372,0.01057665,105040.0,105030.0,0.35683476]
[1737284833573,0.01057665,105040.0,105030.0,0.44170699]
[1737284834247,0.01057665,105040.0,105030.0,0.43534699]
[1737284834464,0.01057665,105040.0,105030.0,0.35683476]
[1737284834611,0.01057665,105040.0,105030.0,0.45672007]
[1737284834846,0.01057665,105040.0,105030.0,0.45036007]
[1737284835042,0.01057665,105040.0,105030.0,0.35047476]
[1737284835195,0.01057665,105040.0,105030.0,0.26155666]
[1737284836748,0.01057665,105040.0,105030.0,0.4801808]
[1737284836945,0.01057665,105040.0,105030.0,0.6373908]
[1737284837153,0.01057665,105040.0,105030.0,0.61392667]
[1737284837589,0.01057665,105040.0,105030.0,0.71932806]
[1737284838217,0.01057665,105040.0,105030.0,0.87230506]
[1737284838422,0.01057665,105040.0,105030.0,0.89008106]
[1737284838825,0.0004269,105050.0,105040.0,0.48309531]
[1737284839036,0.0004279,105080.0,105070.0,0.25709531]
[1737284839240,0.00049638,105080.0,105070.0,0.63092312]
[1737284839358,0.00049638,105080.0,105070.0,0.65149862]
[1737284839752,0.00049638,105080.0,105070.0,0.68084165]
[1737284840007,0.00049638,105080.0,105070.0,0.6867975]
[1737284840676,0.00049638,105080.0,105070.0,0.666222]
[1737284841291,0.00049638,105080.0,105070.0,0.63687897]
[1737284841811,0.00049638,105080.0,105070.0,0.65061297]
[1737284842394,0.00049638,105080.0,105070.0,0.55072766]
[1737284842620,0.00049638,105080.0,105070.0,0.55061297]
[1737284842832,0.00049638,105080.0,105070.0,0.65061297]
[1737284843037,0.00049638,105080.0,105070.0,0.46404297]
[1737284843377,0.00049638,105080.0,105070.0,0.38949177]
[1737284843535,0.00049638,105080.0,105070.0,0.35678366]
[1737284843951,0.00049638,105080.0,105070.0,0.45666897]
[1737284844341,0.00049638,105080.0,105070.0,0.66928029]
[1737284844547,0.00049638,105080.0,105070.0,0.63687897]
[1737284845563,0.00049638,105080.0,105070.0,0.53699366]
[1737284845763,0.00049638,105080.0,105070.0,0.63687897]
[1737284846145,0.00049638,105080.0,105070.0,0.35678366]
[1737284846346,0.00049638,105080.0,105070.0,0.45666897]
[1737284846833,0.00049638,105080.0,105070.0,0.45678366]
[1737284847161,0.00049638,105080.0,105070.0,0.55666897]
[1737284847362,0.00092408,105080.0,105070.0,0.45678366]
[1737284847853,0.00092408,105080.0,105070.0,0.35678366]
[1737284848050,0.00092408,105080.0,105070.0,0.55666897]
[1737284848251,0.00092408,105080.0,105070.0,0.45678366]
[1737284848613,0.00092408,105080.0,105070.0,0.55666897]
[1737284849830,0.00092408,105080.0,105070.0,0.55030897]
[1737284850042,0.00092408,105080.0,105070.0,0.55666897]
[1737284850548,0.00092408,105080.0,105070.0,0.58549923]
[1737284850898,0.00092408,105080.0,105070.0,0.64270923]
[1737284851663,0.00092408,105080.0,105070.0,0.61387897]
[1737284852076,0.00092408,105080.0,105070.0,0.6432331]
[1737284852229,0.00092408,105080.0,105070.0,0.54334779]
[1737284852430,0.00092408,105080.0,105070.0,0.6662331]
[1737284852649,0.00092408,105080.0,105070.0,0.90207936]
[1737284852853,0.0004272,105090.0,105080.0,0.19988531]
[1737284853094,0.00057605,105090.0,105080.0,0.58752051]
[1737284853444,0.00057605,105090.0,105080.0,0.55869025]
[1737284853714,0.00057605,105090.0,105080.0,0.57310538]
[1737284853890,0.00057605,105090.0,105080.0,0.44205025]
[1737284854090,0.00057605,105090.0,105080.0,0.34176079]
[1737284854334,0.00057605,105090.0,105080.0,0.31240666]
[1737284854656,0.00057605,105090.0,105080.0,0.41876666]
[1737284855113,0.00057605,105090.0,105080.0,0.54804219]
[1737284855742,0.00057605,105090.0,105080.0,0.39083219]
[1737284856061,0.00057605,105090.0,105080.0,0.40832291]
[1737284856201,0.00057605,105090.0,105080.0,0.41468291]
[1737284856432,0.00057605,105090.0,105080.0,0.40832291]
[1737284856639,0.00057605,105090.0,105080.0,0.29106688]
[1737284856994,0.00057605,105090.0,105080.0,0.28459055]
[1737284857365,0.00057605,105090.0,105080.0,0.26167666]
[1737284857606,0.07757605,105090.0,105080.0,0.10519666]
[1737284857771,0.12769074,105090.0,105080.0,0.10519666]
[1737284858175,0.12769074,105090.0,105080.0,0.00595585]
[1737284859991,0.077,105080.0,105070.0,0.00089775]
[1737284860204,0.077,105080.0,105070.0,0.10013856]
[1737284860652,0.1232,105080.0,105070.0,0.10609131]
[1737284861650,0.1232,105080.0,105070.0,0.12681387]
[1737284861839,0.1232,105080.0,105070.0,0.10609131]
[1737284862601,0.17331469,105080.0,105070.0,0.25609131]
[1737284863645,0.1232,105080.0,105070.0,0.25609131]